[Event "DVM U12 2021-22"]
[Site "Naumburg"]
[Date "2022.03.26"]
[Round "3"]
[White "Lorenz, Veronika"]
[Black "Moldovan, Tatiana"]
[Result "1-0"]
[ECO "B28"]
[WhiteElo "1388"]
[BlackElo "1403"]
[Annotator "NA"]
[PlyCount "119"]
[EventDate "2022.03.25"]
[EventType "team-tourn"]
[EventRounds "7"]
[EventCountry "GER"]
[SourceTitle "playchess.com"]
[Source "ChessBase"]
[SourceQuality "1"]
[TimeControl "40/5400+30:1800+30"]

1. e4 {[%emt 0:00:05]} c5 {[%emt 0:00:06]} 2. Nf3 {[%emt 0:00:06]} a6 {[%emt 0:00:06]} 3. c3 {[%emt 0:00:13]} d5 {[%emt 0:00:06]} 4. e5 {[%emt 0:10:33]} d4 {[%emt 0:01:05]} 5. cxd4 {[%emt 0:00:32]} cxd4 {[%emt 0:00:07]} 6. Qa4+ {[%emt 0:01:37]} Nc6 {[%emt 0:00:08]} 7. Bb5 {[%emt 0:04:11]} Bd7 {[%emt 0:00:33]} 8. Bxc6 {[%emt 0:00:38]} Bxc6 {[%emt 0:00:09]} 9. Qxd4 {[%emt 0:00:19]} Bxf3 {[%emt 0:00:17]} 10. Qxd8+ {[%emt 0:00:09]} Rxd8 {[%emt 0:00:10]} 11. gxf3 {[%emt 0:00:09]} e6 {[%emt 0:00:48]} 12. O-O {[%emt 0:03:10]} h5 {[%emt 0:00:14]} 13. Rd1 {[%emt 0:04:15]} Bc5 {[%emt 0:01:48]} 14. Nc3 {[%emt 0:02:20]} Rd3 {[%emt 0:00:29]} 15. Ne4 {[%emt 0:04:34]} Bd4 {[%emt 0:00:38]} 16. f4 {[%emt 0:01:42]} f6 {[%emt 0:03:59]} 17. Nd6+ {[%emt 0:05:13]} Ke7 {[%emt 0:00:48]} 18. Nxb7 {[%emt 0:00:50]} Rh6 {[%emt 0:00:45]} 19. Rb1 {[%emt 0:13:10]} Rg6+ {[%emt 0:00:17]} 20. Kh1 {[%emt 0:02:04]} fxe5 {[%emt 0:00:47]} 21. fxe5 {[%emt 0:01:58]} Bxe5 {[%emt 0:00:13]} 22. Rg1 {[%emt 0:00:11]} Rxg1+ {[%emt 0:01:30]} 23. Kxg1 {[%emt 0:00:02]} Rh3 {[%emt 0:00:26]} 24. Nc5 {[%emt 0:08:36]} a5 {[%emt 0:01:53]} 25. d4 {[%emt 0:01:32]} Bxd4 {[%emt 0:01:05]} 26. Kg2 {[%emt 0:00:09]} Rxh2+ {[%emt 0:01:10]} 27. Kxh2 {[%emt 0:00:09]} Bxc5 {[%emt 0:00:05]} 28. Bg5+ {[%emt 0:01:50]} Nf6 {[%emt 0:01:37]} 29. f3 {[%emt 0:00:40]} Kf7 {[%emt 0:00:43]} 30. Rc1 {[%emt 0:01:15]} Bd6+ {[%emt 0:00:20]} 31. Kg2 {[%emt 0:00:18]} Nd5 {[%emt 0:00:21]} 32. Rc6 {[%emt 0:03:38]} Bc7 {[%emt 0:03:46]} 33. Bd2 {[%emt 0:01:15]} Bd8 {[%emt 0:15:40]} 34. Ra6 {[%emt 0:06:15]} g5 {[%emt 0:00:31]} 35. Bxa5 {[%emt 0:00:53]} Nf4+ {[%emt 0:00:59]} 36. Kf1 {[%emt 0:01:30]} Bf6 {[%emt 0:00:16]} 37. b3 {[%emt 0:03:09]} g4 {[%emt 0:00:15]} 38. Bd2 {[%emt 0:03:26]} e5 {[%emt 0:04:28]} 39. fxg4 {[%emt 0:00:53]} hxg4 {[%emt 0:00:03]} 40. a4 {[%emt 0:01:24]} Be7 {[%emt 0:05:02]} 41. Ra7 {[%emt 0:31:24]} Ke6 {[%emt 0:30:13]} 42. a5 {[%emt 0:02:34]} Bc5 {[%emt 0:01:44]} 43. Rg7 {[%emt 0:03:41]} Nd5 {[%emt 0:05:42]} 44. a6 {[%emt 0:03:55]} Ne7 {[%emt 0:00:06]} 45. Rxe7+ {[%emt 0:02:52]} Kxe7 {[%emt 0:00:36]} 46. Bb4 {[%emt 0:00:07]} Bxb4 {[%emt 0:01:36]} 47. a7 {[%emt 0:00:50]} Bc5 {[%emt 0:01:03]} 48. a8=Q {[%emt 0:00:12]} Bd4 {[%emt 0:00:06]} 49. Qg8 {[%emt 0:00:42]} Kd6 {[%emt 0:00:26]} 50. Qxg4 {[%emt 0:00:16]} Kc5 {[%emt 0:00:11]} 51. Qc8+ {[%emt 0:00:35]} Kb5 {[%emt 0:00:24]} 52. Qc4+ {[%emt 0:00:11]} Kb6 {[%emt 0:00:18]} 53. Ke2 {[%emt 0:00:12]} Bb2 {[%emt 0:01:40]} 54. b4 {[%emt 0:00:30]} Bd4 {[%emt 0:00:37]} 55. b5 {[%emt 0:00:24]} Bc5 {[%emt 0:00:44]} 56. Kd3 {[%emt 0:00:13]} Bd4 {[%emt 0:00:12]} 57. Qc6+ {[%emt 0:00:09]} Ka5 {[%emt 0:00:28]} 58. Kc4 {[%emt 0:00:15]} Bb6 {[%emt 0:00:33]} 59. Qa8+ {[%emt 0:00:12]} Ba7 {[%emt 0:00:12]} 60. Qxa7# 1-0

[Event "DVM U12 2021-22"]
[Site "Naumburg"]
[Date "2022.03.26"]
[Round "3"]
[White "Friedrich, Timofej"]
[Black "Wartenberg, Alissa"]
[Result "0-1"]
[ECO "C50"]
[WhiteElo "1377"]
[BlackElo "1670"]
[Annotator "NA"]
[PlyCount "130"]
[EventDate "2022.03.25"]
[EventType "team-tourn"]
[EventRounds "7"]
[EventCountry "GER"]
[SourceTitle "playchess.com"]
[Source "ChessBase"]
[SourceQuality "1"]
[TimeControl "40/5400+30:1800+30"]

1. e4 {[%emt 0:00:04]} e5 {[%emt 0:00:03]} 2. Nf3 {[%emt 0:00:06]} Nc6 {[%emt 0:00:03]} 3. Bc4 {[%emt 0:00:07]} Bc5 {[%emt 0:00:03]} 4. d3 {[%emt 0:00:10]} Nf6 {[%emt 0:00:16]} 5. Be3 {[%emt 0:00:12]} Bb6 {[%emt 0:00:18]} 6. c3 {[%emt 0:00:16]} d6 {[%emt 0:00:28]} 7. Nbd2 {[%emt 0:00:09]} h6 {[%emt 0:00:19]} 8. Nf1 {[%emt 0:01:04]} a6 {[%emt 0:00:25]} 9. Ng3 {[%emt 0:00:15]} Na5 {[%emt 0:01:19]} 10. Bb3 {[%emt 0:00:24]} Nxb3 {[%emt 0:00:22]} 11. axb3 {[%emt 0:00:07]} Qe7 {[%emt 0:00:35]} 12. Qe2 {[%emt 0:00:34]} Bd7 {[%emt 0:02:33]} 13. Rd1 {[%emt 0:01:44]} Bc6 {[%emt 0:00:31]} 14. Nf5 {[%emt 0:00:53]} Qf8 {[%emt 0:00:53]} 15. Bxb6 {[%emt 0:00:23]} cxb6 {[%emt 0:00:10]} 16. Qe3 {[%emt 0:00:29]} g6 {[%emt 0:01:06]} 17. Ng3 {[%emt 0:00:19]} b5 {[%emt 0:00:56]} 18. d4 {[%emt 0:01:11]} Qe7 {[%emt 0:03:47]} 19. d5 {[%emt 0:01:38]} Bd7 {[%emt 0:00:47]} 20. h3 {[%emt 0:00:21]} Qd8 {[%emt 0:01:46]} 21. Rc1 {[%emt 0:01:21]} Rc8 {[%emt 0:04:14]} 22. O-O {[%emt 0:02:35]} Nh5 {[%emt 0:03:48]} 23. Nh2 {[%emt 0:01:21]} Nf4 {[%emt 0:01:20]} 24. Ne2 {[%emt 0:02:48]} g5 {[%emt 0:05:31]} 25. Nxf4 {[%emt 0:00:24]} gxf4 {[%emt 0:00:08]} 26. Qf3 {[%emt 0:00:24]} h5 {[%emt 0:01:12]} 27. Kh1 {[%emt 0:05:45]} Qh4 {[%emt 0:01:25]} 28. g3 {[%emt 0:04:10]} Qxh3 {[%emt 0:03:03]} 29. gxf4 {[%emt 0:00:33]} Qxf3+ {[%emt 0:00:49]} 30. Nxf3 {[%emt 0:00:14]} exf4 {[%emt 0:00:14]} 31. Nh4 {[%emt 0:00:32]} Ke7 {[%emt 0:00:37]} 32. Rg1 {[%emt 0:01:14]} Rcg8 {[%emt 0:02:13]} 33. Ng2 {[%emt 0:05:11]} f3 {[%emt 0:01:30]} 34. Ne3 {[%emt 0:00:21]} h4 {[%emt 0:01:22]} 35. Rxg8 {[%emt 0:00:22]} Rxg8 {[%emt 0:00:08]} 36. Rg1 {[%emt 0:01:03]} Rxg1+ {[%emt 0:00:47]} 37. Kxg1 {[%emt 0:00:08]} Kf6 {[%emt 0:00:08]} 38. Nf1 {[%emt 0:00:40]} Ke5 {[%emt 0:00:38]} 39. Nd2 {[%emt 0:00:11]} Kf4 {[%emt 0:00:16]} 40. Kh2 {[%emt 0:00:25]} Bg4 {[%emt 0:00:34]} 41. b4 {[%emt 0:30:37]} f5 {[%emt 0:31:35]} 42. exf5 {[%emt 0:01:24]} Kxf5 {[%emt 0:01:06]} 43. c4 {[%emt 0:00:27]} Ke5 {[%emt 0:00:58]} 44. b3 {[%emt 0:00:42]} Kd4 {[%emt 0:00:09]} 45. cxb5 {[%emt 0:00:28]} Kc3 {[%emt 0:04:06]} 46. bxa6 {[%emt 0:01:47]} bxa6 {[%emt 0:00:22]} 47. Ne4+ {[%emt 0:00:09]} Kxb3 {[%emt 0:00:16]} 48. Nxd6 {[%emt 0:00:46]} Kxb4 {[%emt 0:00:06]} 49. Ne4 {[%emt 0:03:10]} Kb5 {[%emt 0:01:40]} 50. d6 {[%emt 0:01:45]} Kc6 {[%emt 0:00:05]} 51. Kg1 {[%emt 0:11:24]} a5 {[%emt 0:00:19]} 52. Nd2 {[%emt 0:01:50]} a4 {[%emt 0:04:04]} 53. Nc4 {[%emt 0:00:57]} Kb7 {[%emt 0:00:38]} 54. Na5+ {[%emt 0:01:07]} Kc8 {[%emt 0:00:21]} 55. Nc4 {[%emt 0:00:24]} Kd8 {[%emt 0:00:55]} 56. Kh2 {[%emt 0:03:09]} Be6 {[%emt 0:00:23]} 57. Na3 {[%emt 0:00:14]} Kd7 {[%emt 0:00:37]} 58. Nb5 {[%emt 0:01:34]} Kc6 {[%emt 0:00:53]} 59. Nd4+ {[%emt 0:02:30]} Kxd6 {[%emt 0:00:55]} 60. Nxf3 {[%emt 0:00:24]} a3 {[%emt 0:00:34]} 61. Nd4 {[%emt 0:01:20]} a2 {[%emt 0:00:23]} 62. Nc2 {[%emt 0:00:09]} Bf5 {[%emt 0:00:26]} 63. Na1 {[%emt 0:00:31]} Kd5 {[%emt 0:00:12]} 64. Nb3 {[%emt 0:01:53]} Kc4 {[%emt 0:00:11]} 65. Na5+ Kc3 0-1

[Event "DVM U12 2021-22"]
[Site "Naumburg"]
[Date "2022.03.26"]
[Round "3"]
[White "Schimann, Kirill"]
[Black "Dorendorf, Mika"]
[Result "0-1"]
[ECO "A45"]
[WhiteElo "1344"]
[BlackElo "1550"]
[Annotator "NA"]
[PlyCount "80"]
[EventDate "2022.03.25"]
[EventType "team-tourn"]
[EventRounds "7"]
[EventCountry "GER"]
[SourceTitle "playchess.com"]
[Source "ChessBase"]
[SourceQuality "1"]
[TimeControl "40/5400+30:1800+30"]

1. d4 {[%emt 0:00:02]} Nf6 {[%emt 0:00:05]} 2. Bf4 {[%emt 0:00:07]} d5 {[%emt 0:00:05]} 3. e3 {[%emt 0:00:08]} c5 {[%emt 0:00:04]} 4. c3 {[%emt 0:00:12]} Nc6 {[%emt 0:00:04]} 5. Bd3 {[%emt 0:00:18]} Qb6 {[%emt 0:00:22]} 6. Qc2 {[%emt 0:00:58]} c4 {[%emt 0:00:10]} 7. Be2 {[%emt 0:00:11]} Bf5 {[%emt 0:00:16]} 8. Qc1 {[%emt 0:01:47]} e6 {[%emt 0:01:32]} 9. Nd2 {[%emt 0:01:25]} Be7 {[%emt 0:01:14]} 10. Ngf3 {[%emt 0:00:50]} O-O {[%emt 0:00:11]} 11. Nh4 {[%emt 0:00:32]} Bg6 {[%emt 0:02:19]} 12. Nxg6 {[%emt 0:00:31]} hxg6 {[%emt 0:00:23]} 13. h3 {[%emt 0:02:29]} Qa5 {[%emt 0:01:49]} 14. O-O b5 15. a3 {[%emt 0:02:29]} Qb6 {[%emt 0:07:24]} 16. Nf3 {[%emt 0:03:15]} a5 {[%emt 0:01:12]} 17. Ne5 {[%emt 0:04:26]} Nxe5 {[%emt 0:00:23]} 18. Bxe5 {[%emt 0:00:37]} Nd7 {[%emt 0:00:07]} 19. Bh2 {[%emt 0:00:30]} b4 {[%emt 0:00:19]} 20. axb4 {[%emt 0:02:18]} axb4 {[%emt 0:01:51]} 21. Qd2 {[%emt 0:01:08]} b3 {[%emt 0:01:18]} 22. Bf3 {[%emt 0:01:53]} Ra2 {[%emt 0:02:06]} 23. Rab1 {[%emt 0:01:29]} Rfa8 {[%emt 0:01:37]} 24. e4 {[%emt 0:02:06]} Nf6 {[%emt 0:02:19]} 25. exd5 {[%emt 0:01:22]} Nxd5 {[%emt 0:00:56]} 26. Bxd5 {[%emt 0:01:27]} exd5 {[%emt 0:00:11]} 27. Rfe1 {[%emt 0:00:45]} Qd8 {[%emt 0:01:55]} 28. Red1 {[%emt 0:01:43]} R8a7 {[%emt 0:01:08]} 29. Qe1 {[%emt 0:01:48]} Qa8 {[%emt 0:01:50]} 30. g4 {[%emt 0:02:21]} Bh4 {[%emt 0:04:22]} 31. Kg2 {[%emt 0:02:30]} Re7 {[%emt 0:01:19]} 32. Qd2 {[%emt 0:01:34]} Rea7 {[%emt 0:04:08]} 33. Qe1 {[%emt 0:00:17]} Kh7 {[%emt 0:02:36]} 34. Bg3 {[%emt 0:00:33]} Be7 {[%emt 0:02:46]} 35. Bh2 {[%emt 0:01:15]} Bf6 {[%emt 0:04:42]} 36. Bg3 {[%emt 0:03:39]} Re7 {[%emt 0:00:33]} 37. Qd2 {[%emt 0:00:37]} Qe8 {[%emt 0:00:27]} 38. g5 {[%emt 0:03:29]} Re2 {[%emt 0:00:27]} 39. Qc1 {[%emt 0:00:26]} Bd8 {[%emt 0:05:02]} 40. Rd2 {[%emt 0:02:33]} Rxd2 {[%emt 0:00:11]} 0-1

[Event "DVM U12 2021-22"]
[Site "Naumburg"]
[Date "2022.03.26"]
[Round "3"]
[White "Uhl, Henry"]
[Black "Goldschmidt, Jakob"]
[Result "0-1"]
[ECO "C44"]
[WhiteElo "1301"]
[BlackElo "1081"]
[Annotator "NA"]
[PlyCount "78"]
[EventDate "2022.03.25"]
[EventType "team-tourn"]
[EventRounds "7"]
[EventCountry "GER"]
[SourceTitle "playchess.com"]
[Source "ChessBase"]
[SourceQuality "1"]
[TimeControl "40/5400+30:1800+30"]

1. e4 {[%emt 0:00:03]} e5 {[%emt 0:00:08]} 2. Nf3 {[%emt 0:00:06]} Nc6 {[%emt 0:00:07]} 3. d4 {[%emt 0:00:03]} exd4 {[%emt 0:00:39]} 4. Nxd4 {[%emt 0:00:07]} Nf6 {[%emt 0:00:45]} 5. Nc3 {[%emt 0:00:10]} Bb4 {[%emt 0:00:40]} 6. Nxc6 {[%emt 0:00:15]} bxc6 {[%emt 0:00:15]} 7. Bd3 {[%emt 0:00:19]} d5 {[%emt 0:01:34]} 8. Bd2 {[%emt 0:00:56]} Bxc3 {[%emt 0:00:37]} 9. Bxc3 {[%emt 0:00:14]} dxe4 {[%emt 0:00:25]} 10. Bxf6 {[%emt 0:00:12]} Qxf6 {[%emt 0:00:48]} 11. Bxe4 {[%emt 0:00:19]} Ba6 {[%emt 0:01:17]} 12. Qf3 {[%emt 0:01:34]} Qxf3 {[%emt 0:00:50]} 13. Bxf3 {[%emt 0:00:08]} O-O-O {[%emt 0:00:46]} 14. Bxc6 {[%emt 0:00:21]} Rd6 {[%emt 0:01:16]} 15. Ba4 {[%emt 0:00:26]} Rhd8 {[%emt 0:01:29]} 16. f3 {[%emt 0:00:50]} Re6+ {[%emt 0:03:26]} 17. Kf2 {[%emt 0:00:23]} Rd2+ {[%emt 0:01:47]} 18. Kg3 {[%emt 0:01:22]} Rg6+ {[%emt 0:01:10]} 19. Kf4 {[%emt 0:00:18]} Rd4+ {[%emt 0:01:14]} 20. Ke3 {[%emt 0:01:04]} Rxa4 {[%emt 0:00:31]} 21. b3 {[%emt 0:00:41]} Re6+ {[%emt 0:02:14]} 22. Kd2 {[%emt 0:00:51]} Rd4+ {[%emt 0:02:16]} 23. Kc3 {[%emt 0:02:43]} Red6 {[%emt 0:04:25]} 24. Rhe1 {[%emt 0:01:48]} Rd7 {[%emt 0:01:52]} 25. Re5 {[%emt 0:00:39]} R4d5 {[%emt 0:01:19]} 26. Re8+ {[%emt 0:01:02]} Kb7 {[%emt 0:00:45]} 27. Rh8 {[%emt 0:01:21]} h5 {[%emt 0:01:52]} 28. Re1 {[%emt 0:02:04]} Rc5+ {[%emt 0:01:47]} 29. Kb2 {[%emt 0:01:05]} Rd2 {[%emt 0:00:41]} 30. Rc1 {[%emt 0:00:42]} Bd3 {[%emt 0:01:30]} 31. Rd8 {[%emt 0:00:38]} Rcxc2+ {[%emt 0:02:57]} 32. Rxc2 {[%emt 0:00:35]} Rxc2+ {[%emt 0:00:09]} 33. Ka1 {[%emt 0:00:11]} Bg6 {[%emt 0:00:49]} 34. Rg8 {[%emt 0:00:34]} Rxg2 {[%emt 0:00:25]} 35. Rxg7 {[%emt 0:00:14]} Kb6 {[%emt 0:01:39]} 36. Rg8 {[%emt 0:00:37]} Kc5 {[%emt 0:01:06]} 37. a4 {[%emt 0:01:22]} Kb4 {[%emt 0:00:25]} 38. Rb8+ {[%emt 0:00:09]} Ka3 {[%emt 0:00:22]} 39. b4 {[%emt 0:00:44]} Rg1# {[%emt 0:00:17]} 0-1

[Event "DVM U12 2021-22"]
[Site "Naumburg"]
[Date "2022.03.26"]
[Round "3"]
[White "Gulamzada, Elmir"]
[Black "Meisel, Aaron"]
[Result "1-0"]
[ECO "B01"]
[WhiteElo "1291"]
[BlackElo "915"]
[Annotator "NA"]
[PlyCount "61"]
[EventDate "2022.03.25"]
[EventType "team-tourn"]
[EventRounds "7"]
[EventCountry "GER"]
[SourceTitle "playchess.com"]
[Source "ChessBase"]
[SourceQuality "1"]
[TimeControl "40/5400+30:1800+30"]

1. e4 {[%emt 0:00:06]} d5 {[%emt 0:00:12]} 2. exd5 {[%emt 0:00:25]} Nf6 {[%emt 0:00:08]} 3. Nf3 {[%emt 0:01:26]} Nxd5 {[%emt 0:00:49]} 4. Bc4 {[%emt 0:00:49]} Nc6 {[%emt 0:01:17]} 5. d3 {[%emt 0:02:48]} e5 {[%emt 0:01:41]} 6. Be3 {[%emt 0:00:31]} Bg4 {[%emt 0:01:14]} 7. h3 {[%emt 0:01:22]} Bxf3 {[%emt 0:01:01]} 8. Qxf3 {[%emt 0:00:17]} Ncb4 {[%emt 0:02:06]} 9. Bb3 {[%emt 0:01:15]} Nf6 {[%emt 0:03:04]} 10. Qxb7 {[%emt 0:03:24]} Bd6 {[%emt 0:01:16]} 11. a3 {[%emt 0:05:06]} Rb8 {[%emt 0:01:30]} 12. Qxa7 {[%emt 0:01:42]} Nc6 {[%emt 0:01:37]} 13. Ba4 {[%emt 0:01:47]} O-O {[%emt 0:02:45]} 14. Bxc6 {[%emt 0:00:34]} Rxb2 {[%emt 0:01:21]} 15. Qa4 {[%emt 0:00:34]} e4 16. Bxe4 Nxe4 17. Qxe4 f5 {[%emt 0:06:45]} 18. Qc4+ {[%emt 0:01:59]} Kh8 {[%emt 0:00:54]} 19. O-O {[%emt 0:01:10]} Qe7 {[%emt 0:00:48]} 20. Nd2 {[%emt 0:01:54]} Rf6 {[%emt 0:03:40]} 21. Bd4 {[%emt 0:00:24]} Be5 {[%emt 0:01:29]} 22. Bxb2 {[%emt 0:00:28]} Bxb2 {[%emt 0:00:37]} 23. Rab1 {[%emt 0:01:08]} Rb6 {[%emt 0:00:51]} 24. c3 {[%emt 0:01:04]} h6 {[%emt 0:02:50]} 25. Rfe1 {[%emt 0:01:36]} Qf6 {[%emt 0:02:05]} 26. Qd4 {[%emt 0:01:51]} Qg5 {[%emt 0:01:20]} 27. Nf3 {[%emt 0:00:34]} Qg6 {[%emt 0:01:45]} 28. Qd8+ {[%emt 0:00:47]} Kh7 {[%emt 0:04:08]} 29. Re8 {[%emt 0:01:04]} Qc6 {[%emt 0:01:06]} 30. Rh8+ {[%emt 0:00:06]} Kg6 {[%emt 0:00:35]} 31. Ne5+ {[%emt 0:00:04]} 1-0

[Event "DVM U12 2021-22"]
[Site "Naumburg"]
[Date "2022.03.26"]
[Round "3"]
[White "Becker, Joe Matthis"]
[Black "Zimmer, Tim"]
[Result "0-1"]
[ECO "C50"]
[WhiteElo "1258"]
[BlackElo "1170"]
[Annotator "NA"]
[PlyCount "110"]
[EventDate "2022.03.25"]
[EventType "team-tourn"]
[EventRounds "7"]
[EventCountry "GER"]
[SourceTitle "playchess.com"]
[Source "ChessBase"]
[SourceQuality "1"]
[TimeControl "40/5400+30:1800+30"]

1. e4 {[%emt 0:00:03]} e5 {[%emt 0:00:06]} 2. Nf3 {[%emt 0:00:04]} Nc6 {[%emt 0:00:06]} 3. Bc4 {[%emt 0:00:04]} Bc5 {[%emt 0:00:05]} 4. O-O {[%emt 0:00:07]} Nf6 {[%emt 0:00:24]} 5. b4 {[%emt 0:00:05]} Bxb4 {[%emt 0:01:10]} 6. c3 {[%emt 0:00:04]} Be7 {[%emt 0:00:57]} 7. d4 {[%emt 0:00:08]} Na5 {[%emt 0:01:06]} 8. Nxe5 {[%emt 0:01:37]} Nxc4 {[%emt 0:01:16]} 9. Nxc4 {[%emt 0:00:10]} d5 {[%emt 0:03:48]} 10. exd5 {[%emt 0:00:37]} Qxd5 {[%emt 0:00:17]} 11. Ne3 {[%emt 0:00:56]} Qd8 {[%emt 0:00:12]} 12. c4 {[%emt 0:01:43]} O-O {[%emt 0:01:24]} 13. Nc3 {[%emt 0:00:55]} Re8 {[%emt 0:05:39]} 14. Qf3 {[%emt 0:02:12]} Qxd4 {[%emt 0:04:36]} 15. Bb2 {[%emt 0:04:25]} Qb6 {[%emt 0:08:08]} 16. Rab1 {[%emt 0:03:28]} Qc5 {[%emt 0:09:01]} 17. Rfd1 {[%emt 0:01:05]} c6 {[%emt 0:02:41]} 18. Ne4 {[%emt 0:08:41]} Nxe4 {[%emt 0:02:23]} 19. Qxe4 {[%emt 0:00:11]} Qh5 {[%emt 0:04:06]} 20. Qxe7 {[%emt 0:04:19]} Bg4 {[%emt 0:02:25]} 21. Qd6 {[%emt 0:04:04]} Bxd1 {[%emt 0:00:52]} 22. Rxd1 {[%emt 0:00:17]} h6 {[%emt 0:01:52]} 23. Qd4 {[%emt 0:02:36]} Qg6 {[%emt 0:02:41]} 24. Qc3 {[%emt 0:03:59]} Rad8 {[%emt 0:01:12]} 25. Rf1 {[%emt 0:01:52]} Rd3 {[%emt 0:03:00]} 26. Qc2 {[%emt 0:03:23]} Red8 {[%emt 0:01:55]} 27. h3 {[%emt 0:04:41]} Qg5 {[%emt 0:02:05]} 28. Re1 {[%emt 0:03:40]} Rd2 {[%emt 0:01:11]} 29. Qc3 {[%emt 0:02:11]} f6 {[%emt 0:04:19]} 30. c5 {[%emt 0:03:32]} Kh8 {[%emt 0:02:44]} 31. Qb3 {[%emt 0:03:05]} Qf4 {[%emt 0:02:58]} 32. Rf1 {[%emt 0:01:09]} Re2 {[%emt 0:05:07]} 33. Bc1 {[%emt 0:00:31]} Qe4 {[%emt 0:05:58]} 34. a3 {[%emt 0:11:30]} Rd7 {[%emt 0:01:36]} 35. Rd1 {[%emt 0:03:19]} Rxd1+ {[%emt 0:02:00]} 36. Qxd1 {[%emt 0:00:07]} Ra2 {[%emt 0:00:32]} 37. Kf1 {[%emt 0:04:38]} Qf4 {[%emt 0:03:56]} 38. Qe1 {[%emt 0:05:28]} Qd4 {[%emt 0:02:24]} 39. Ng4 {[%emt 0:01:59]} Qd3+ {[%emt 0:00:49]} 40. Kg1 {[%emt 0:00:59]} Re2 {[%emt 0:00:31]} 41. Qf1 {[%emt 0:30:56]} Qc2 {[%emt 0:35:04]} 42. Ne3 {[%emt 0:01:21]} Qa2 {[%emt 0:00:15]} 43. g3 {[%emt 0:01:45]} g5 {[%emt 0:03:43]} 44. Kg2 {[%emt 0:00:07]} f5 {[%emt 0:01:06]} 45. Kf3 {[%emt 0:01:32]} g4+ {[%emt 0:00:10]} 46. hxg4 {[%emt 0:00:11]} fxg4+ {[%emt 0:00:54]} 47. Kxg4 {[%emt 0:03:58]} Rxf2 {[%emt 0:01:03]} 48. Qc4 {[%emt 0:05:53]} Qxc4+ {[%emt 0:00:30]} 49. Nxc4 {[%emt 0:00:30]} Rc2 {[%emt 0:00:30]} 50. Nd6 {[%emt 0:00:30]} Rxc1 {[%emt 0:00:30]} 51. Nxb7 {[%emt 0:00:30]} Rc4+ {[%emt 0:00:30]} 52. Kh5 {[%emt 0:00:30]} Kg7 {[%emt 0:00:30]} 53. g4 {[%emt 0:00:30]} a6 {[%emt 0:00:30]} 54. Nd8 {[%emt 0:00:06]} Rxc5+ {[%emt 0:00:00]} 55. Kh4 {[%emt 0:00:13]} Kf6 {[%emt 0:00:00]} 0-1

[Event "DVM U12 2021-22"]
[Site "Naumburg"]
[Date "2022.03.26"]
[Round "3"]
[White "Moldovan, Stela"]
[Black "Smith, Tobias"]
[Result "0-1"]
[ECO "D04"]
[WhiteElo "1209"]
[BlackElo "1571"]
[Annotator "NA"]
[PlyCount "42"]
[EventDate "2022.03.25"]
[EventType "team-tourn"]
[EventRounds "7"]
[EventCountry "GER"]
[SourceTitle "playchess.com"]
[Source "ChessBase"]
[SourceQuality "1"]
[TimeControl "40/5400+30:1800+30"]

1. d4 {[%emt 0:00:06]} d5 {[%emt 0:00:09]} 2. Nf3 {[%emt 0:00:07]} Nf6 {[%emt 0:00:27]} 3. e3 {[%emt 0:00:06]} Bf5 {[%emt 0:04:28]} 4. Bd3 {[%emt 0:00:34]} Bg6 {[%emt 0:07:00]} 5. b3 {[%emt 0:01:19]} c5 {[%emt 0:02:17]} 6. Bb2 {[%emt 0:00:26]} e6 {[%emt 0:00:42]} 7. Ne5 {[%emt 0:00:47]} Nc6 {[%emt 0:05:00]} 8. O-O {[%emt 0:01:36]} Bd6 9. f4 Qb6 {[%emt 0:05:08]} 10. Nc3 {[%emt 0:01:24]} Nb4 {[%emt 0:10:35]} 11. Na4 {[%emt 0:01:39]} Qc7 {[%emt 0:00:44]} 12. Bb5+ {[%emt 0:00:18]} Ke7 {[%emt 0:01:19]} 13. c3 {[%emt 0:00:40]} Nc6 {[%emt 0:02:01]} 14. Nxg6+ {[%emt 0:01:26]} hxg6 {[%emt 0:00:31]} 15. dxc5 {[%emt 0:00:18]} Bxc5 {[%emt 0:00:57]} 16. Nxc5 {[%emt 0:00:08]} Qb6 {[%emt 0:00:04]} 17. Bxc6 {[%emt 0:00:14]} Qxc5 {[%emt 0:00:11]} 18. Bxb7 {[%emt 0:01:10]} Qxe3+ {[%emt 0:00:11]} 19. Kh1 {[%emt 0:00:57]} Rxh2+ {[%emt 0:01:58]} 20. Kxh2 {[%emt 0:03:01]} Rh8+ {[%emt 0:00:08]} 21. Qh5 {[%emt 0:01:34]} Rxh5# 0-1

[Event "DVM U12 2021-22"]
[Site "Naumburg"]
[Date "2022.03.26"]
[Round "3"]
[White "Streich, Alexander"]
[Black "Schriefer, Leo Hans"]
[Result "1-0"]
[ECO "B20"]
[WhiteElo "1129"]
[BlackElo "1037"]
[Annotator "NA"]
[PlyCount "81"]
[EventDate "2022.03.25"]
[EventType "team-tourn"]
[EventRounds "7"]
[EventCountry "GER"]
[SourceTitle "playchess.com"]
[Source "ChessBase"]
[SourceQuality "1"]
[TimeControl "40/5400+30:1800+30"]

1. e4 c5 {[%emt 0:00:05]} 2. c4 {[%emt 0:00:08]} g6 {[%emt 0:00:06]} 3. Nc3 {[%emt 0:00:30]} Nc6 {[%emt 0:00:14]} 4. g3 {[%emt 0:00:19]} Bg7 {[%emt 0:02:32]} 5. Bg2 Nf6 6. d3 {[%emt 0:02:13]} O-O {[%emt 0:00:42]} 7. Bf4 d6 8. h4 {[%emt 0:02:26]} h5 {[%emt 0:02:59]} 9. Bh3 {[%emt 0:00:32]} Bxh3 {[%emt 0:00:28]} 10. Rxh3 {[%emt 0:01:01]} Qd7 {[%emt 0:03:01]} 11. f3 {[%emt 0:01:58]} Nd4 {[%emt 0:02:03]} 12. Rh2 {[%emt 0:00:35]} a6 {[%emt 0:00:56]} 13. Qd2 {[%emt 0:00:55]} Rab8 {[%emt 0:02:02]} 14. Bh6 {[%emt 0:00:09]} b5 {[%emt 0:00:36]} 15. b3 {[%emt 0:00:21]} Bxh6 {[%emt 0:03:05]} 16. Qxh6 {[%emt 0:00:09]} Nc2+ {[%emt 0:00:15]} 17. Rxc2 {[%emt 0:00:09]} bxc4 {[%emt 0:03:03]} 18. dxc4 {[%emt 0:00:23]} Qc7 {[%emt 0:02:03]} 19. Nh3 {[%emt 0:02:35]} d5 {[%emt 0:04:29]} 20. Rg2 {[%emt 0:02:31]} Qa5 {[%emt 0:01:24]} 21. Rc1 {[%emt 0:03:44]} d4 {[%emt 0:04:31]} 22. Ng5 {[%emt 0:00:52]} e5 {[%emt 0:01:00]} 23. f4 {[%emt 0:00:20]} dxc3 24. fxe5 {[%emt 0:00:25]} c2+ {[%emt 0:01:05]} 25. Rd2 {[%emt 0:00:39]} Qc3 {[%emt 0:00:48]} 26. exf6 {[%emt 0:00:54]} Qxg3+ {[%emt 0:00:54]} 27. Ke2 {[%emt 0:02:30]} Qg4+ {[%emt 0:02:11]} 28. Kd3 {[%emt 0:00:15]} Rfd8+ {[%emt 0:01:14]} 29. Kxc2 {[%emt 0:00:55]} Rxd2+ {[%emt 0:00:14]} 30. Kxd2 {[%emt 0:00:15]} Rd8+ {[%emt 0:01:08]} 31. Kc2 {[%emt 0:00:35]} Qe2+ {[%emt 0:00:22]} 32. Kb1 {[%emt 0:00:33]} Qd3+ {[%emt 0:02:17]} 33. Kb2 {[%emt 0:00:28]} Qd4+ {[%emt 0:02:42]} 34. Ka3 {[%emt 0:00:30]} Qxf6 {[%emt 0:00:21]} 35. Re1 {[%emt 0:01:16]} Rd2 {[%emt 0:01:30]} 36. e5 {[%emt 0:00:37]} Qg7 {[%emt 0:00:16]} 37. Qxg7+ {[%emt 0:00:20]} Kxg7 {[%emt 0:00:08]} 38. e6 {[%emt 0:00:14]} Kf8 {[%emt 0:01:22]} 39. e7+ {[%emt 0:00:08]} Ke8 {[%emt 0:00:12]} 40. Ne4 {[%emt 0:00:23]} Rd4 {[%emt 0:00:30]} 41. Nf6# 1-0